[Event "Moscow Rapid-ch 2018"]
[Site "Moscow"]
[Date "2018.12.08"]
[Round "4"]
[White "Vasilevich, Irina"]
[Black "Paramzina, Anastasya"]
[Result "1/2-1/2"]
[ECO "A16"]
[WhiteElo "2258"]
[BlackElo "2229"]
[Annotator "NA"]
[PlyCount "136"]
[EventDate "2018.12.08"]
[EventType "swiss"]
[EventCountry "RUS"]
[SourceTitle "playchess.com"]
[Source "ChessBase"]
[SourceQuality "1"]
[TimeControl "900+10"]

1. c4 {[%emt 0:00:00]} Nf6 {[%emt 0:00:00]} 2. Nc3 {[%emt 0:00:00]} g6 {[%emt 0:00:02]} 3. g3 {[%emt 0:00:02]} c5 {[%emt 0:00:03]} 4. Bg2 {[%emt 0:00:05]} Bg7 {[%emt 0:00:04]} 5. e4 {[%emt 0:00:25]} Nc6 {[%emt 0:00:10]} 6. Nge2 {[%emt 0:00:03]} e5 {[%emt 0:00:56]} 7. d3 {[%emt 0:00:20]} d6 {[%emt 0:00:14]} 8. a3 {[%emt 0:00:14]} O-O {[%emt 0:00:17]} 9. Rb1 {[%emt 0:00:04]} a5 {[%emt 0:00:02]} 10. O-O {[%emt 0:00:13]} Be6 {[%emt 0:01:22]} 11. f4 {[%emt 0:01:59]} Nd4 {[%emt 0:01:08]} 12. f5 {[%emt 0:02:01]} gxf5 {[%emt 0:01:12]} 13. Nxd4 {[%emt 0:01:28]} cxd4 {[%emt 0:00:43]} 14. exf5 {[%emt 0:00:04]} dxc3 {[%emt 0:00:05]} 15. fxe6 {[%emt 0:00:03]} Qb6+ {[%emt 0:00:23]} 16. Kh1 {[%emt 0:00:54]} fxe6 {[%emt 0:00:11]} 17. Bg5 {[%emt 0:05:17]} cxb2 {[%emt 0:05:24]} 18. Qe2 {[%emt 0:00:06]} Qd4 {[%emt 0:00:28]} 19. Be3 {[%emt 0:02:04]} Qc3 {[%emt 0:01:06]} 20. Rxb2 {[%emt 0:00:06]} e4 {[%emt 0:00:11]} 21. Rxb7 {[%emt 0:02:13]} exd3 {[%emt 0:00:41]} 22. Qd1 {[%emt 0:00:11]} Qxc4 {[%emt 0:00:50]} 23. Bg5 {[%emt 0:00:22]} Ne4 {[%emt 0:00:42]} 24. Bf4 {[%emt 0:00:35]} e5 {[%emt 0:00:15]} 25. Qg4 {[%emt 0:00:00]} Rf7 {[%emt 0:01:09]} 26. Rxf7 {[%emt 0:00:00]} Qxf7 {[%emt 0:00:32]} 27. Bxe4 {[%emt 0:00:00]} Rf8 {[%emt 0:00:16]} 28. Qf3 {[%emt 0:00:13]} Kh8 {[%emt 0:00:14]} 29. Be3 {[%emt 0:00:24]} Qc4 {[%emt 0:00:14]} 30. Bf5 {[%emt 0:00:05]} d2 {[%emt 0:00:24]} 31. Rd1 {[%emt 0:00:07]} Qb3 {[%emt 0:00:22]} 32. g4 {[%emt 0:00:23]} Bh6 {[%emt 0:00:05]} 33. Rxd2 {[%emt 0:00:14]} Bxe3 {[%emt 0:00:10]} 34. Rxd6 {[%emt 0:00:03]} Qxa3 {[%emt 0:00:10]} 35. Rd3 {[%emt 0:00:12]} Qc1+ {[%emt 0:00:07]} 36. Rd1 {[%emt 0:00:02]} Qc5 {[%emt 0:00:03]} 37. Qe4 {[%emt 0:00:14]} Bf4 {[%emt 0:00:07]} 38. Bxh7 {[%emt 0:00:12]} Qf2 {[%emt 0:00:03]} 39. Qg2 {[%emt 0:00:15]} Qxg2+ {[%emt 0:00:02]} 40. Kxg2 {[%emt 0:00:01]} Kxh7 {[%emt 0:00:02]} 41. Rd7+ {[%emt 0:00:14]} Kg6 {[%emt 0:00:01]} 42. Ra7 {[%emt 0:00:01]} Rd8 {[%emt 0:00:08]} 43. h4 {[%emt 0:00:17]} Rd2+ {[%emt 0:00:09]} 44. Kf3 {[%emt 0:00:01]} Rd3+ {[%emt 0:00:05]} 45. Ke4 {[%emt 0:00:01]} Rd4+ {[%emt 0:00:23]} 46. Kf3 {[%emt 0:00:02]} Rd3+ {[%emt 0:00:04]} 47. Ke4 {[%emt 0:00:01]} Re3+ {[%emt 0:00:03]} 48. Kd5 {[%emt 0:00:01]} Rg3 {[%emt 0:00:12]} 49. Ra6+ {[%emt 0:00:46]} Kg7 {[%emt 0:00:13]} 50. Ra7+ {[%emt 0:00:01]} Kf6 {[%emt 0:00:13]} 51. Ra6+ {[%emt 0:00:01]} Ke7 {[%emt 0:00:03]} 52. Ra7+ {[%emt 0:00:01]} Kd8 {[%emt 0:00:06]} 53. g5 {[%emt 0:00:20]} a4 {[%emt 0:00:06]} 54. Rxa4 {[%emt 0:00:05]} Rh3 {[%emt 0:00:10]} 55. Ra8+ {[%emt 0:00:10]} Ke7 {[%emt 0:00:12]} 56. Ra7+ {[%emt 0:00:30]} Kf8 {[%emt 0:00:08]} 57. Rh7 {[%emt 0:00:03]} Kg8 {[%emt 0:00:07]} 58. g6 {[%emt 0:00:03]} Rd3+ {[%emt 0:00:21]} 59. Ke4 {[%emt 0:00:14]} Rd8 {[%emt 0:00:11]} 60. h5 {[%emt 0:00:13]} Re8 {[%emt 0:00:15]} 61. Rb7 {[%emt 0:00:22]} Rd8 {[%emt 0:00:13]} 62. Rf7 {[%emt 0:00:14]} Re8 {[%emt 0:00:03]} 63. Rb7 {[%emt 0:00:01]} Bh6 {[%emt 0:00:10]} 64. Ra7 {[%emt 0:00:19]} Re6 {[%emt 0:00:34]} 65. Ra8+ {[%emt 0:00:06]} Kg7 {[%emt 0:00:06]} 66. Ra7+ {[%emt 0:00:08]} Kg8 {[%emt 0:00:02]} 67. Ra8+ {[%emt 0:00:05]} Kg7 {[%emt 0:00:04]} 68. Ra7+ {[%emt 0:00:03]} Kg8 {[%emt 0:00:25]} 1/2-1/2

[Event "Moscow Rapid-ch 2018"]
[Site "Moscow"]
[Date "2018.12.08"]
[Round "4"]
[White "Diakonova, Ekaterina"]
[Black "Chasovnikova, Eugenia"]
[Result "0-1"]
[ECO "B31"]
[WhiteElo "2225"]
[BlackElo "2201"]
[Annotator "NA"]
[PlyCount "64"]
[EventDate "2018.12.08"]
[EventType "swiss"]
[EventCountry "RUS"]
[SourceTitle "playchess.com"]
[Source "ChessBase"]
[SourceQuality "1"]
[TimeControl "900+10"]

1. e4 {[%emt 0:00:00]} c5 {[%emt 0:00:00]} 2. Nf3 {[%emt 0:00:00]} Nc6 {[%emt 0:00:00]} 3. Bb5 {[%emt 0:00:00]} g6 {[%emt 0:00:02]} 4. O-O {[%emt 0:00:00]} Bg7 {[%emt 0:00:01]} 5. Re1 {[%emt 0:00:00]} e5 {[%emt 0:00:26]} 6. Nc3 {[%emt 0:02:39]} Nge7 {[%emt 0:00:03]} 7. Nd5 {[%emt 0:00:04]} O-O {[%emt 0:00:59]} 8. d3 {[%emt 0:00:31]} Nxd5 {[%emt 0:01:25]} 9. exd5 {[%emt 0:00:02]} Nd4 {[%emt 0:00:02]} 10. c4 {[%emt 0:02:30]} Nxb5 {[%emt 0:01:34]} 11. cxb5 {[%emt 0:00:01]} d6 {[%emt 0:00:02]} 12. Nd2 {[%emt 0:00:51]} b6 {[%emt 0:00:15]} 13. a4 {[%emt 0:03:09]} f5 {[%emt 0:00:33]} 14. a5 {[%emt 0:00:15]} bxa5 {[%emt 0:00:17]} 15. Qb3 {[%emt 0:00:41]} Bb7 {[%emt 0:02:36]} 16. Qc4 {[%emt 0:00:04]} a6 {[%emt 0:00:29]} 17. b6 {[%emt 0:00:01]} Qxb6 {[%emt 0:00:06]} 18. Nb3 {[%emt 0:00:01]} a4 {[%emt 0:01:15]} 19. Rxa4 {[%emt 0:00:10]} a5 {[%emt 0:00:02]} 20. Bd2 {[%emt 0:02:54]} Ba6 {[%emt 0:00:01]} 21. Qc2 {[%emt 0:00:01]} e4 {[%emt 0:01:42]} 22. dxe4 {[%emt 0:00:55]} fxe4 {[%emt 0:01:42]} 23. Bxa5 {[%emt 0:01:25]} Qb5 {[%emt 0:02:22]} 24. Ra2 {[%emt 0:01:11]} e3 {[%emt 0:00:31]} 25. f3 {[%emt 0:00:19]} c4 {[%emt 0:00:05]} 26. Nc1 {[%emt 0:00:31]} Qxd5 {[%emt 0:00:21]} 27. Ne2 {[%emt 0:00:19]} Qd3 {[%emt 0:01:01]} 28. Rc1 {[%emt 0:00:28]} d5 {[%emt 0:00:15]} 29. Bb6 {[%emt 0:00:10]} d4 {[%emt 0:00:24]} 30. Nxd4 {[%emt 0:00:29]} Bxd4 {[%emt 0:00:29]} 31. Bxd4 {[%emt 0:00:05]} Qxd4 {[%emt 0:00:09]} 32. Rd1 {[%emt 0:00:01]} e2+ {[%emt 0:00:22]} 0-1

[Event "Moscow Rapid-ch 2018"]
[Site "Moscow"]
[Date "2018.12.08"]
[Round "4"]
[White "Strutinskaia, Galina"]
[Black "Kanevskaya, Anna"]
[Result "1/2-1/2"]
[ECO "A01"]
[WhiteElo "2201"]
[BlackElo "2105"]
[Annotator "NA"]
[PlyCount "67"]
[EventDate "2018.12.08"]
[EventType "swiss"]
[EventCountry "RUS"]
[SourceTitle "playchess.com"]
[Source "ChessBase"]
[SourceQuality "1"]
[TimeControl "900+10"]

1. b3 {[%emt 0:00:00]} a5 {[%emt 0:00:00]} 2. f4 {[%emt 0:00:23]} a4 {[%emt 0:00:05]} 3. Bb2 {[%emt 0:00:18]} e6 {[%emt 0:00:26]} 4. Nf3 {[%emt 0:00:13]} d5 {[%emt 0:00:21]} 5. e3 {[%emt 0:00:26]} Nf6 {[%emt 0:00:09]} 6. bxa4 {[%emt 0:00:22]} Ne4 {[%emt 0:00:36]} 7. Nc3 {[%emt 0:00:27]} Nc5 {[%emt 0:01:28]} 8. Bb5+ {[%emt 0:00:48]} c6 {[%emt 0:00:07]} 9. Be2 {[%emt 0:00:02]} Be7 {[%emt 0:01:09]} 10. O-O {[%emt 0:00:22]} O-O {[%emt 0:00:19]} 11. Ne5 {[%emt 0:01:34]} f6 {[%emt 0:00:08]} 12. Nd3 {[%emt 0:00:02]} Nxa4 {[%emt 0:00:16]} 13. Nxa4 {[%emt 0:00:04]} Rxa4 {[%emt 0:00:01]} 14. Qe1 {[%emt 0:00:48]} c5 {[%emt 0:01:09]} 15. Qg3 {[%emt 0:01:03]} Nc6 {[%emt 0:00:33]} 16. Nf2 {[%emt 0:00:08]} Qb6 {[%emt 0:00:29]} 17. Rab1 {[%emt 0:00:10]} Qc7 {[%emt 0:00:35]} 18. a3 {[%emt 0:00:24]} c4 {[%emt 0:00:34]} 19. h4 {[%emt 0:00:54]} Bxa3 {[%emt 0:00:28]} 20. Bxa3 {[%emt 0:03:49]} Rxa3 {[%emt 0:00:02]} 21. h5 {[%emt 0:00:00]} Ne7 {[%emt 0:01:01]} 22. c3 {[%emt 0:00:51]} Ra2 {[%emt 0:00:28]} 23. Rbd1 {[%emt 0:00:11]} Bd7 {[%emt 0:00:10]} 24. Bg4 {[%emt 0:00:12]} f5 {[%emt 0:01:03]} 25. Bf3 {[%emt 0:00:01]} h6 {[%emt 0:01:02]} 26. Qh4 {[%emt 0:00:06]} Qd8 {[%emt 0:00:18]} 27. g4 {[%emt 0:00:12]} fxg4 {[%emt 0:00:14]} 28. Bxg4 {[%emt 0:00:03]} Nf5 {[%emt 0:00:10]} 29. Qh3 {[%emt 0:00:01]} Bc6 {[%emt 0:00:45]} 30. Nh1 {[%emt 0:00:44]} Qf6 {[%emt 0:00:58]} 31. Rf2 {[%emt 0:00:35]} Ba4 {[%emt 0:00:18]} 32. Rb1 {[%emt 0:00:44]} Rf7 {[%emt 0:01:22]} 33. Ng3 {[%emt 0:00:33]} Bc2 {[%emt 0:00:21]} 34. Bxf5 {[%emt 0:00:02]} 1/2-1/2

[Event "Moscow Rapid-ch 2018"]
[Site "Moscow"]
[Date "2018.12.08"]
[Round "4"]
[White "Chudinovskikh, Alexander M"]
[Black "Pavlov, Danila"]
[Result "1-0"]
[ECO "C01"]
[WhiteElo "2184"]
[BlackElo "2323"]
[Annotator "NA"]
[PlyCount "51"]
[EventDate "2018.12.08"]
[EventType "swiss"]
[EventCountry "RUS"]
[SourceTitle "playchess.com"]
[Source "ChessBase"]
[SourceQuality "1"]
[TimeControl "900+10"]

1. e4 {[%emt 0:00:00]} e6 {[%emt 0:00:00]} 2. d4 {[%emt 0:00:00]} d5 {[%emt 0:00:00]} 3. exd5 exd5 {[%emt 0:00:00]} 4. Nf3 {[%emt 0:00:00]} Bd6 {[%emt 0:00:00]} 5. c4 {[%emt 0:00:00]} dxc4 {[%emt 0:00:00]} 6. Bxc4 {[%emt 0:00:00]} Nf6 {[%emt 0:00:01]} 7. O-O {[%emt 0:00:07]} O-O {[%emt 0:00:02]} 8. h3 {[%emt 0:00:06]} a6 {[%emt 0:00:10]} 9. Nc3 {[%emt 0:00:04]} b5 {[%emt 0:00:03]} 10. Bb3 {[%emt 0:00:01]} Bb7 {[%emt 0:00:17]} 11. Bg5 {[%emt 0:00:10]} Nbd7 {[%emt 0:00:18]} 12. Re1 {[%emt 0:00:02]} Re8 {[%emt 0:00:08]} 13. Rxe8+ Qxe8 {[%emt 0:00:03]} 14. Qd3 {[%emt 0:00:43]} Qf8 {[%emt 0:00:15]} 15. Bxf6 {[%emt 0:00:27]} Nxf6 {[%emt 0:00:23]} 16. Ng5 {[%emt 0:00:05]} g6 {[%emt 0:02:04]} 17. Nxf7 {[%emt 0:00:12]} Kg7 {[%emt 0:00:01]} 18. Ng5 {[%emt 0:00:16]} Qe7 {[%emt 0:00:15]} 19. Ne6+ {[%emt 0:01:44]} Kh8 {[%emt 0:00:02]} 20. Re1 {[%emt 0:00:10]} Re8 {[%emt 0:00:07]} 21. Re3 {[%emt 0:00:21]} Qd7 {[%emt 0:02:03]} 22. d5 {[%emt 0:00:20]} c5 {[%emt 0:00:14]} 23. dxc6 {[%emt 0:00:37]} Qxc6 {[%emt 0:00:05]} 24. Bd5 {[%emt 0:00:17]} Qd7 {[%emt 0:00:31]} 25. Qd4 {[%emt 0:00:41]} Qf7 {[%emt 0:01:16]} 26. Ng5 {[%emt 0:00:27]} 1-0

[Event "Moscow Rapid-ch 2018"]
[Site "Moscow"]
[Date "2018.12.08"]
[Round "4"]
[White "Stukan, Martin"]
[Black "Reprintsev, Alexander"]
[Result "1-0"]
[ECO "B01"]
[WhiteElo "2142"]
[BlackElo "2371"]
[Annotator "NA"]
[PlyCount "55"]
[EventDate "2018.12.08"]
[EventType "swiss"]
[EventCountry "RUS"]
[SourceTitle "playchess.com"]
[Source "ChessBase"]
[SourceQuality "1"]
[TimeControl "900+10"]

1. e4 {[%emt 0:00:00]} d5 {[%emt 0:00:00]} 2. exd5 {[%emt 0:00:00]} Qxd5 {[%emt 0:00:00]} 3. Nc3 {[%emt 0:00:00]} Qa5 {[%emt 0:00:00]} 4. d4 {[%emt 0:00:00]} Nf6 {[%emt 0:00:00]} 5. Nf3 {[%emt 0:00:07]} Nc6 {[%emt 0:00:08]} 6. Bb5 {[%emt 0:01:27]} Ne4 {[%emt 0:00:21]} 7. Bxc6+ bxc6 {[%emt 0:00:02]} 8. O-O {[%emt 0:00:19]} Nxc3 9. bxc3 {[%emt 0:00:01]} Bf5 {[%emt 0:00:04]} 10. Nh4 {[%emt 0:01:38]} Be6 {[%emt 0:02:05]} 11. Qf3 {[%emt 0:01:26]} Bd5 {[%emt 0:03:27]} 12. Qg3 {[%emt 0:00:19]} e6 {[%emt 0:00:11]} 13. Bf4 {[%emt 0:00:03]} g5 {[%emt 0:04:56]} 14. Qxg5 {[%emt 0:03:15]} Be7 {[%emt 0:00:07]} 15. Qh5 {[%emt 0:00:05]} Qxc3 {[%emt 0:01:02]} 16. Bxc7 {[%emt 0:03:32]} Qxc2 {[%emt 0:01:11]} 17. Bg3 {[%emt 0:00:22]} Rg8 {[%emt 0:00:42]} 18. Rfe1 {[%emt 0:00:42]} Rg5 {[%emt 0:00:31]} 19. Qh6 {[%emt 0:00:45]} Kd7 {[%emt 0:00:47]} 20. Rab1 {[%emt 0:01:36]} c5 {[%emt 0:00:58]} 21. dxc5 {[%emt 0:01:10]} Rag8 {[%emt 0:00:06]} 22. c6+ Bxc6 {[%emt 0:00:40]} 23. Rbc1 {[%emt 0:01:02]} Qxa2 {[%emt 0:00:28]} 24. Qxh7 {[%emt 0:00:08]} R8g7 {[%emt 0:00:57]} 25. Qd3+ {[%emt 0:00:26]} Rd5 {[%emt 0:00:02]} 26. Qc3 {[%emt 0:00:04]} Bxh4 {[%emt 0:00:13]} 27. Qxc6+ {[%emt 0:00:03]} Ke7 {[%emt 0:00:06]} 28. Bxh4+ {[%emt 0:00:02]} 1-0

[Event "Moscow Rapid-ch 2018"]
[Site "Moscow"]
[Date "2018.12.08"]
[Round "4"]
[White "Vyrtosu, Natalia"]
[Black "Martynyuk, Elizaveta"]
[Result "0-1"]
[ECO "D00"]
[WhiteElo "1952"]
[BlackElo "2128"]
[Annotator "NA"]
[PlyCount "66"]
[EventDate "2018.12.08"]
[EventType "swiss"]
[EventCountry "RUS"]
[SourceTitle "playchess.com"]
[Source "ChessBase"]
[SourceQuality "1"]
[TimeControl "900+10"]

1. d4 d5 2. Bf4 Nf6 3. e3 c6 4. Nf3 Qb6 5. Qc1 Bf5 6. c4 dxc4 7. Bxc4 e6 8. O-O Be7 9. Nc3 O-O 10. Nh4 Bg6 11. Nxg6 hxg6 12. Qc2 Nbd7 13. Na4 Qa5 14. Nc3 Rac8 15. a3 c5 16. d5 Nb6 17. dxe6 Nxc4 18. exf7+ Rxf7 19. b3 Nd6 20. Bxd6 Bxd6 21. Ne4 Be5 22. Ra2 Nxe4 23. Qxe4 Qc7 24. f4 Bf6 25. Qxg6 Re7 26. e4 Bd4+ 27. Kh1 Rf8 28. g3 Rf6 29. Qh5 Rxe4 30. Qd5+ Ree6 31. Re1 Qc6 32. Qxc6 Rxe1+ 33. Kg2 Rxc6 0-1

[Event "Moscow Rapid-ch 2018"]
[Site "Moscow"]
[Date "2018.12.08"]
[Round "5"]
[White "Lavrov, Maxim"]
[Black "Gorbatov, Alexej"]
[Result "1-0"]
[ECO "B22"]
[WhiteElo "2387"]
[BlackElo "2389"]
[Annotator "NA"]
[PlyCount "69"]
[EventDate "2018.12.08"]
[EventType "swiss"]
[EventCountry "RUS"]
[SourceTitle "playchess.com"]
[Source "ChessBase"]
[SourceQuality "1"]
[TimeControl "900+10"]

1. e4 {[%emt 0:00:00]} c5 {[%emt 0:00:00]} 2. c3 {[%emt 0:00:00]} a6 {[%emt 0:00:16]} 3. d4 {[%emt 0:00:00]} cxd4 {[%emt 0:00:01]} 4. cxd4 {[%emt 0:00:00]} d5 {[%emt 0:00:01]} 5. Nc3 {[%emt 0:00:17]} dxe4 {[%emt 0:00:05]} 6. Bc4 {[%emt 0:00:17]} Nf6 {[%emt 0:00:26]} 7. Qb3 {[%emt 0:00:31]} e6 {[%emt 0:00:03]} 8. d5 {[%emt 0:00:18]} b5 {[%emt 0:00:38]} 9. dxe6 {[%emt 0:05:09]} bxc4 {[%emt 0:00:12]} 10. Qa4+ {[%emt 0:00:01]} Ke7 {[%emt 0:00:36]} 11. Be3 {[%emt 0:00:45]} fxe6 {[%emt 0:01:26]} 12. Qxc4 {[%emt 0:00:37]} Bb7 {[%emt 0:02:16]} 13. Qb4+ {[%emt 0:00:06]} Ke8 {[%emt 0:00:53]} 14. Qxb7 {[%emt 0:00:02]} Nbd7 {[%emt 0:00:01]} 15. Nh3 {[%emt 0:01:15]} Bd6 {[%emt 0:02:29]} 16. Ng5 {[%emt 0:00:19]} Qc7 {[%emt 0:00:37]} 17. Qxc7 {[%emt 0:00:11]} Bxc7 {[%emt 0:00:05]} 18. Nxe6 {[%emt 0:00:02]} Be5 {[%emt 0:01:00]} 19. Nxg7+ {[%emt 0:00:07]} Kf7 {[%emt 0:00:03]} 20. Nf5 {[%emt 0:00:02]} Rab8 {[%emt 0:00:07]} 21. O-O-O {[%emt 0:00:40]} Kg6 {[%emt 0:02:36]} 22. Ne7+ {[%emt 0:00:51]} Kf7 {[%emt 0:00:21]} 23. Nc6 {[%emt 0:00:15]} Rb7 {[%emt 0:00:13]} 24. Nxe5+ {[%emt 0:01:30]} Nxe5 {[%emt 0:00:01]} 25. Kb1 {[%emt 0:00:15]} Rc8 {[%emt 0:00:15]} 26. Bd4 {[%emt 0:00:21]} Nc4 {[%emt 0:00:47]} 27. b3 {[%emt 0:00:13]} Na3+ {[%emt 0:00:02]} 28. Kb2 {[%emt 0:00:10]} Nc4+ {[%emt 0:00:01]} 29. Ka1 {[%emt 0:00:08]} Na3 {[%emt 0:00:19]} 30. Bxf6 {[%emt 0:00:10]} Kxf6 {[%emt 0:01:47]} 31. Nxe4+ {[%emt 0:00:02]} Kg6 {[%emt 0:00:46]} 32. Nd6 {[%emt 0:00:05]} Rc2 {[%emt 0:00:01]} 33. Nxb7 {[%emt 0:00:09]} Nb5 {[%emt 0:00:01]} 34. Rc1 {[%emt 0:00:14]} Rxf2 {[%emt 0:00:03]} 35. Nc5 {[%emt 0:00:05]} 1-0

[Event "Moscow Rapid-ch 2018"]
[Site "Moscow"]
[Date "2018.12.08"]
[Round "5"]
[White "Tsvetkov, Andrey"]
[Black "Girshgorn, Leonid"]
[Result "1-0"]
[ECO "D85"]
[WhiteElo "2338"]
[BlackElo "2038"]
[Annotator "NA"]
[PlyCount "116"]
[EventDate "2018.12.08"]
[EventType "swiss"]
[EventCountry "RUS"]
[SourceTitle "playchess.com"]
[Source "ChessBase"]
[SourceQuality "1"]
[TimeControl "900+10"]

1. d4 {[%emt 0:00:00]} Nf6 {[%emt 0:00:00]} 2. c4 {[%emt 0:00:00]} g6 {[%emt 0:00:00]} 3. Nc3 {[%emt 0:00:00]} d5 {[%emt 0:00:00]} 4. cxd5 {[%emt 0:00:00]} Nxd5 {[%emt 0:00:00]} 5. e4 {[%emt 0:00:00]} Nxc3 {[%emt 0:00:00]} 6. bxc3 {[%emt 0:00:00]} Bg7 {[%emt 0:00:00]} 7. Nf3 {[%emt 0:00:00]} c5 {[%emt 0:00:00]} 8. Be3 {[%emt 0:00:00]} Nc6 {[%emt 0:00:00]} 9. Qd2 {[%emt 0:00:08]} cxd4 {[%emt 0:00:03]} 10. cxd4 {[%emt 0:00:02]} Bg4 {[%emt 0:00:05]} 11. Rd1 {[%emt 0:00:11]} O-O {[%emt 0:00:02]} 12. Be2 {[%emt 0:00:33]} Rc8 {[%emt 0:00:03]} 13. O-O {[%emt 0:00:08]} Na5 {[%emt 0:00:08]} 14. Qb4 {[%emt 0:01:45]} Nc6 {[%emt 0:01:39]} 15. Qxb7 {[%emt 0:01:45]} Bxf3 {[%emt 0:00:48]} 16. Bxf3 {[%emt 0:01:39]} Nxd4 {[%emt 0:00:12]} 17. Qxa7 {[%emt 0:00:02]} Nxf3+ {[%emt 0:03:06]} 18. gxf3 {[%emt 0:00:02]} Qe8 {[%emt 0:00:10]} 19. Qd7 {[%emt 0:02:31]} Rc2 {[%emt 0:01:22]} 20. Qxe8 {[%emt 0:00:13]} Rxe8 {[%emt 0:00:00]} 21. a3 {[%emt 0:00:03]} Ra8 {[%emt 0:00:38]} 22. Rd7 {[%emt 0:00:28]} Bf8 {[%emt 0:01:00]} 23. Rb1 {[%emt 0:01:01]} Rcc8 {[%emt 0:00:41]} 24. Rb3 {[%emt 0:00:15]} Ra6 {[%emt 0:02:28]} 25. Ra7 {[%emt 0:00:43]} Ra8 {[%emt 0:00:44]} 26. Rxa6 {[%emt 0:01:07]} Rxa6 {[%emt 0:00:01]} 27. Rb8 {[%emt 0:00:01]} Kg7 {[%emt 0:00:11]} 28. Bc5 {[%emt 0:00:02]} f6 {[%emt 0:00:23]} 29. Kf1 {[%emt 0:00:22]} Kf7 {[%emt 0:00:01]} 30. Ke2 {[%emt 0:00:02]} f5 {[%emt 0:00:10]} 31. Kd3 {[%emt 0:00:29]} Bg7 {[%emt 0:00:19]} 32. Rb7 {[%emt 0:00:22]} Bf6 {[%emt 0:00:02]} 33. Ra7 {[%emt 0:01:16]} fxe4+ {[%emt 0:00:12]} 34. fxe4 {[%emt 0:00:05]} Rc6 {[%emt 0:00:06]} 35. Bb4 {[%emt 0:00:10]} Bh4 {[%emt 0:00:17]} 36. f4 {[%emt 0:00:14]} Rc1 {[%emt 0:00:17]} 37. Bd2 {[%emt 0:00:49]} Rd1 {[%emt 0:00:21]} 38. Rd7 {[%emt 0:01:34]} Ra1 {[%emt 0:00:13]} 39. Ra7 {[%emt 0:00:01]} Rd1 {[%emt 0:00:07]} 40. Kc3 {[%emt 0:02:32]} Bf2 {[%emt 0:00:13]} 41. Rb7 {[%emt 0:00:26]} Ra1 {[%emt 0:00:19]} 42. Kc4 {[%emt 0:00:34]} Rd1 {[%emt 0:00:59]} 43. Bc3 {[%emt 0:00:14]} Be3 {[%emt 0:00:12]} 44. f5 {[%emt 0:00:10]} gxf5 {[%emt 0:00:01]} 45. exf5 {[%emt 0:00:01]} Bg5 {[%emt 0:00:18]} 46. a4 {[%emt 0:00:17]} Bf6 {[%emt 0:00:56]} 47. Bb4 {[%emt 0:00:19]} Rd4+ {[%emt 0:00:10]} 48. Kb5 {[%emt 0:00:02]} Rd5+ {[%emt 0:01:02]} 49. Kc6 {[%emt 0:00:01]} Rxf5 50. a5 Rf1 {[%emt 0:02:55]} 51. a6 {[%emt 0:00:28]} Ra1 {[%emt 0:00:01]} 52. a7 {[%emt 0:00:18]} Bd4 {[%emt 0:00:32]} 53. Rxe7+ {[%emt 0:00:01]} Kf6 {[%emt 0:00:08]} 54. Rd7 {[%emt 0:00:05]} Ra6+ {[%emt 0:00:04]} 55. Kb5 {[%emt 0:00:00]} Rxa7 {[%emt 0:00:04]} 56. Rxd4 {[%emt 0:00:00]} Ra2 {[%emt 0:00:06]} 57. Rd2 {[%emt 0:00:04]} Ra1 {[%emt 0:00:11]} 58. Bc3+ {[%emt 0:00:12]} Ke6 1-0

[Event "Moscow Rapid-ch 2018"]
[Site "Moscow"]
[Date "2018.12.08"]
[Round "5"]
[White "Dudin, Gleb"]
[Black "Gurvich, Vitaly"]
[Result "1/2-1/2"]
[ECO "E73"]
[WhiteElo "2303"]
[BlackElo "2270"]
[Annotator "NA"]
[PlyCount "95"]
[EventDate "2018.12.08"]
[EventType "swiss"]
[EventCountry "RUS"]
[SourceTitle "playchess.com"]
[Source "ChessBase"]
[SourceQuality "1"]
[TimeControl "900+10"]

1. c4 Nf6 2. Nc3 g6 3. e4 d6 4. d4 Bg7 5. Be2 O-O 6. Bg5 c5 7. d5 b5 8. cxb5 a6 9. a4 Qa5 10. Bd2 axb5 11. Bxb5 Ba6 12. Ra3 Nbd7 13. Nf3 Bxb5 14. Nxb5 Qb6 15. Qc2 e6 16. dxe6 fxe6 17. O-O d5 18. exd5 exd5 19. Bf4 Ne4 20. Bc7 Qb7 21. Rd1 Kh8 22. Re3 c4 23. b3 cxb3 24. Qxb3 Ndc5 25. Qxd5 Qxd5 26. Rxd5 Rxa4 27. Rd1 Rb4 28. Nd6 Nc3 29. Rc1 Rb2 30. h3 N5a4 31. Kh1 Rxf2 32. Ne4 Nxe4 33. Rxe4 Nc3 34. Rc4 Nd5 35. Bg3 Re2 36. Rc8 Ree8 37. Rxe8 Rxe8 38. Rd1 Nc3 39. Rd7 Ne4 40. Bc7 Bf6 41. Bb6 Kg8 42. Bd4 Bxd4 43. Rxd4 Ng3+ 44. Kh2 Nf5 45. Rd2 Kg7 46. Rd7+ Re7 47. Rxe7+ Nxe7 48. Ng1 1/2-1/2

[Event "Moscow Rapid-ch 2018"]
[Site "Moscow"]
[Date "2018.12.08"]
[Round "5"]
[White "Paramzina, Anastasya"]
[Black "Borisova, Ekaterina"]
[Result "1-0"]
[ECO "B56"]
[WhiteElo "2229"]
[BlackElo "2244"]
[Annotator "NA"]
[PlyCount "91"]
[EventDate "2018.12.08"]
[EventType "swiss"]
[EventCountry "RUS"]
[SourceTitle "playchess.com"]
[Source "ChessBase"]
[SourceQuality "1"]
[TimeControl "900+10"]

1. e4 {[%emt 0:00:00]} c5 {[%emt 0:00:00]} 2. Nc3 {[%emt 0:00:22]} Nc6 {[%emt 0:00:00]} 3. Nf3 {[%emt 0:00:15]} d6 {[%emt 0:00:00]} 4. d4 {[%emt 0:00:07]} cxd4 {[%emt 0:00:00]} 5. Nxd4 {[%emt 0:00:01]} Nf6 {[%emt 0:00:00]} 6. Nb3 {[%emt 0:01:39]} g6 {[%emt 0:00:42]} 7. Be2 {[%emt 0:00:31]} Bg7 {[%emt 0:00:01]} 8. h4 {[%emt 0:00:06]} h5 {[%emt 0:00:37]} 9. f3 {[%emt 0:00:22]} Be6 {[%emt 0:01:17]} 10. Nd5 {[%emt 0:00:48]} Bxd5 {[%emt 0:01:24]} 11. exd5 {[%emt 0:00:01]} Ne5 {[%emt 0:00:23]} 12. Be3 {[%emt 0:00:51]} Qc7 {[%emt 0:00:49]} 13. Qd2 {[%emt 0:04:04]} Rc8 {[%emt 0:02:27]} 14. c4 {[%emt 0:01:19]} O-O {[%emt 0:01:42]} 15. Rc1 {[%emt 0:00:06]} b5 {[%emt 0:01:04]} 16. cxb5 {[%emt 0:01:46]} Qb7 {[%emt 0:00:04]} 17. Rd1 {[%emt 0:00:03]} Nc4 {[%emt 0:00:37]} 18. Bxc4 {[%emt 0:00:13]} Rxc4 {[%emt 0:00:02]} 19. Na5 {[%emt 0:00:02]} Qxb5 {[%emt 0:00:09]} 20. Nxc4 {[%emt 0:00:04]} Qxc4 {[%emt 0:00:01]} 21. b3 {[%emt 0:00:07]} Qa6 {[%emt 0:00:31]} 22. Kf2 {[%emt 0:00:10]} Nd7 {[%emt 0:00:07]} 23. Rc1 {[%emt 0:00:35]} Ne5 {[%emt 0:00:14]} 24. Rhd1 {[%emt 0:00:05]} Bf6 {[%emt 0:00:50]} 25. g3 {[%emt 0:00:27]} Qb7 {[%emt 0:00:24]} 26. Kg2 {[%emt 0:00:24]} Qd7 {[%emt 0:00:18]} 27. Qc2 {[%emt 0:00:30]} a5 {[%emt 0:01:06]} 28. Qe4 {[%emt 0:01:23]} Rb8 {[%emt 0:00:46]} 29. Rc2 {[%emt 0:00:19]} Rb4 {[%emt 0:00:50]} 30. Rd4 {[%emt 0:00:20]} Rb5 {[%emt 0:00:18]} 31. Bg5 {[%emt 0:00:33]} Bxg5 {[%emt 0:01:00]} 32. hxg5 {[%emt 0:00:02]} Qb7 {[%emt 0:01:09]} 33. Rd1 {[%emt 0:00:26]} Rb4 {[%emt 0:00:06]} 34. Qe3 {[%emt 0:00:16]} Rb5 {[%emt 0:00:50]} 35. Qd4 {[%emt 0:00:12]} Rb4 {[%emt 0:00:10]} 36. Qc3 {[%emt 0:00:03]} Qa7 {[%emt 0:00:21]} 37. Rdc1 {[%emt 0:00:37]} Rb5 {[%emt 0:00:23]} 38. Qd2 {[%emt 0:00:27]} a4 {[%emt 0:00:16]} 39. f4 {[%emt 0:00:22]} Ng4 {[%emt 0:00:07]} 40. Rc8+ {[%emt 0:00:11]} Kh7 {[%emt 0:00:06]} 41. Qb2 {[%emt 0:00:15]} e5 {[%emt 0:00:27]} 42. dxe6 {[%emt 0:00:06]} Qb7+ {[%emt 0:00:01]} 43. R1c6 {[%emt 0:00:26]} Ne5 {[%emt 0:00:09]} 44. fxe5 {[%emt 0:00:13]} Rxe5 {[%emt 0:00:01]} 45. exf7 {[%emt 0:00:14]} Qb5 {[%emt 0:00:05]} 46. Rh8+ {[%emt 0:00:30]} 1-0